bitfinex-derivatives/quotes_ETHF0:USTF0_20250326
["timestamp","ask_amount","ask_price","bid_price","bid_amount"]
[1742996879276,0.97433,2052.3,2052.2,4.18209]
[1742996879568,0.97433,2052.3,2052.2,4.18214]
[1742996879974,2.37452,2052.5,2052.4,0.97425]
[1742996880275,0.97429,2052.4,2052.3,0.97426]
[1742996881371,0.9743,2052.3,2052.2,3.2078]
[1742996881576,2.3212,2052.3,2052.2,3.2078]
[1742996882078,0.97449,2052.0,2051.9,4.18226]
[1742996882269,0.97449,2052.0,2051.9,3.2078]
[1742996882966,0.7117,2052.4,2051.9,5.64402]
[1742996883168,3.78268,2052.3,2051.9,3.2078]
[1742996883371,0.97444,2052.1,2052.0,0.97441]
[1742996883770,0.97444,2052.0,2051.9,4.18227]
[1742996883964,0.97444,2052.0,2051.9,3.2078]
[1742996884378,0.97444,2052.0,2051.9,4.18229]
[1742996884579,1.3772,2052.1,2052.0,0.97444]
[1742996885072,0.6484119,2052.6,2052.0,5.82]
[1742996885278,2.3586819,2052.6,2052.5,3.2078]
[1742996885677,2.3586819,2052.6,2052.5,4.182]
[1742996886265,0.0073119,2052.6,2052.5,4.182]
[1742996886471,0.9814619,2052.6,2052.5,4.182]
[1742996886671,0.9814619,2052.6,2052.5,3.2078]
[1742996887777,1.6885619,2052.6,2052.5,3.2078]
[1742996888568,0.97439,2052.1,2052.0,0.6627]
[1742996888774,0.97439,2052.1,2052.0,3.2078]
[1742996888978,2.43599,2052.1,2051.7,45.64505]
[1742996889176,0.97453,2051.8,2051.7,47.00375]
[1742996889380,0.97453,2051.8,2051.7,3.8705]
[1742996889580,0.97453,2051.8,2051.7,4.84508]
[1742996889773,0.97453,2051.8,2051.7,3.8705]
[1742996890174,0.97453,2051.8,2051.7,3.2078]
[1742996894777,0.97453,2051.8,2051.4,1.6338219]
[1742996894778,0.97468,2051.5,2051.4,3.8669119]
[1742996894972,0.97468,2051.5,2051.4,3.2151119]
[1742996895885,0.97468,2051.5,2051.4,0.0073119]
[1742996896589,2.99478,2051.5,2051.4,0.0073119]
[1742996898382,2.99478,2051.5,2051.4,1.9e-06]
[1742996898783,4.00539995,2051.5,2051.4,1.9e-06]
[1742996899177,3.92538822,2051.5,2051.4,1.9e-06]
[1742996899382,3.07478988,2051.5,2051.4,1.9e-06]
[1742996899584,2.99478,2051.5,2051.4,1.9e-06]
[1742996899776,2.30018,2051.5,2051.4,1.9e-06]
[1742996903282,5.50798,2051.5,2051.4,1.9e-06]
[1742996904387,2.30018,2051.5,2051.4,1.9e-06]
[1742996905197,5.62018,2051.5,2051.4,1.9e-06]
[1742996906795,2.30018,2051.5,2051.4,1.9e-06]
[1742996911504,5.50798,2051.5,2051.4,1.9e-06]
[1742996912299,17.95801068,2051.5,2051.4,1.9e-06]
[1742996912698,0.97496,2050.9,2050.8,0.6609]
[1742996912905,0.97496,2050.9,2050.8,0.6467637]
[1742996914005,0.97501,2050.8,2050.7,1.4126]
[1742996914191,0.97506,2050.7,2050.6,44.7024119]
[1742996915808,2.39573,2050.8,2050.6,44.7024119]
[1742996916102,0.97501,2050.8,2050.7,1.377]
[1742996916702,0.97501,2050.8,2050.7,2.35206]
[1742996917603,0.97498,2050.9,2050.8,0.97496]
[1742996917799,0.97499,2050.9,2050.8,0.97496]
[1742996918000,0.97501,2050.8,2050.7,2.35203]
[1742996918407,0.97501,2050.9,2050.8,0.97496]
[1742996918702,0.97496,2051.0,2050.9,0.97492]
[1742996918904,0.9822119,2051.1,2051.0,0.97491]
[1742996919105,0.9822119,2051.1,2051.0,1.65521]
[1742996919501,0.9822119,2051.1,2051.0,0.6803]
[1742996919699,0.9822119,2051.1,2051.0,1.65521]
[1742996920299,0.9822119,2051.1,2051.0,0.6803]
[1742996920602,0.9822119,2051.1,2051.0,1.65521]
[1742996920908,0.0073119,2051.1,2051.0,1.65521]
[1742996921108,1.3159,2051.5,2051.0,1.65521]
[1742996921294,2.43659,2051.6,2051.3,0.97477]
[1742996921295,0.97477,2051.4,2051.3,0.97477]
[1742996921694,0.97477,2051.3,2051.2,4.18259]
[1742996921904,1.3159,2051.7,2051.2,4.18259]
[1742996921905,1.3159,2051.5,2051.2,3.2078]
[1742996922109,0.97466,2051.6,2051.5,0.97463]
[1742996922407,0.9678356,2051.6,2051.5,4.18243]
[1742996922805,0.9678356,2051.6,2051.5,4.82823]
[1742996923001,0.0073119,2051.6,2051.5,4.82823]
[1742996923507,0.97457,2051.8,2051.7,0.97458]
[1742996923710,0.97463,2051.7,2051.6,0.9746]
[1742996923903,0.97457,2051.8,2051.7,0.97454]
[1742996924296,0.97463,2051.7,2051.6,0.97459]
[1742996924496,0.97463,2051.6,2051.5,4.82824]
[1742996924997,0.97463,2051.6,2051.5,4.82828]
[1742996925510,0.97463,2051.6,2051.5,3.8536]
[1742996925811,0.97463,2051.6,2051.5,4.82828]
[1742996926208,0.0073119,2051.9,2051.5,3.8536]
[1742996926402,0.0073119,2051.9,2051.8,4.18233]
[1742996926602,0.9818019,2051.9,2051.8,4.18233]
[1742996926803,0.9818019,2051.9,2051.8,3.2078]
[1742996926998,0.97458,2051.7,2051.6,0.0073119]
[1742996927915,0.97463,2051.6,2051.5,3.2078]
[1742996928107,3.02593,2051.6,2051.5,3.2078]
[1742996930812,2.36833,2051.6,2051.5,3.2078]
[1742996933113,0.97468,2051.5,2051.4,0.0073119]
[1742996933316,2.39198,2051.5,2051.4,0.0073119]
[1742996935715,0.97468,2051.6,2051.5,0.97465]
[1742996936012,0.97468,2051.6,2051.5,3.2078]
[1742996938310,0.97468,2051.5,2051.4,0.0073119]
[1742996938516,3.66448,2051.5,2051.4,0.0073119]
[1742996939213,3.66448,2051.5,2051.4,1.9e-06]
[1742996941217,14.44746287,2051.5,2051.4,1.9e-06]
[1742996942211,16.94746287,2051.5,2051.4,1.9e-06]
[1742996946426,17.0276004,2051.5,2051.4,1.9e-06]
[1742996946616,4.87394,2051.3,2050.8,0.6939]
[1742996946823,0.97496,2050.9,2050.8,0.6797637]
[1742996947119,0.97496,2050.9,2050.8,41.4797637]
[1742996947422,0.97501,2050.8,2050.7,1.3914]
[1742996947618,3.79388,2051.0,2050.7,1.3914]
[1742996947619,0.975,2050.9,2050.7,1.3914]
[1742996947917,0.97477,2051.4,2051.0,2.43729]
[1742996948118,0.97477,2051.3,2051.2,3.2078]
[1742996948715,0.97477,2051.3,2051.2,44.0078]
[1742996950023,0.97477,2051.3,2051.2,44.689]
[1742996950423,0.97477,2051.3,2051.2,44.0078]
[1742996950722,0.97491,2051.0,2050.9,0.708]
[1742996950917,0.97501,2050.8,2050.7,4.523]
[1742996951123,0.97501,2050.8,2050.7,3.8567]
[1742996953917,0.97501,2050.8,2050.7,3.2078]
[1742996955218,0.97501,2050.8,2050.7,3.9162]
[1742996957323,0.97501,2050.8,2050.7,3.2078]
[1742996957728,2.30551,2050.8,2050.7,3.8918]
[1742996957922,0.97501,2050.8,2050.7,3.8918]
[1742996958125,0.97501,2050.8,2050.7,4.86686]
[1742996958717,2.43727,2051.1,2050.8,0.97497]
[1742996958718,0.975,2050.9,2050.8,0.97497]
[1742996959123,0.97501,2050.8,2050.7,44.6918]
[1742996959634,3.8639,2051.5,2050.8,2.43753]
[1742996959819,3.8639,2051.5,2051.2,3.2078]
[1742996959820,0.97477,2051.3,2051.2,3.2078]
[1742996960021,0.97477,2051.3,2051.2,3.9119]
[1742996960427,2.28617,2051.3,2051.2,3.9119]
[1742996960624,0.97477,2051.3,2051.2,3.9119]
[1742996961223,2.28617,2051.3,2051.2,0.7041]
[1742996961525,0.97496,2050.9,2050.8,3.2078]
[1742996961727,0.97496,2050.9,2050.8,3.9119]
[1742996963850,0.97496,2050.9,2050.8,3.2078]
[1742996964640,2.31156,2050.9,2050.8,3.2078]
[1742996966142,0.9751,2050.6,2050.5,3.2151119]
[1742996967050,2.28,2050.6,2050.5,3.2151119]
[1742996971951,2.28,2050.6,2050.5,4.6327119]
[1742996972348,0.9751,2050.6,2050.5,4.6327119]
[1742996975050,0.0073119,2050.8,2050.7,0.97506]
[1742996975346,0.97485,2051.2,2051.1,0.97484]
[1742996975548,0.97485,2051.2,2051.1,3.2078]
[1742996975747,0.97485,2051.2,2051.1,44.0078]
[1742996975947,0.97485,2051.2,2051.1,45.2896]
[1742996976345,0.97485,2051.2,2051.1,46.26447]
[1742996976546,0.97485,2051.2,2051.1,45.2896]
[1742996976957,0.97485,2051.2,2051.1,46.26447]
[1742996977246,0.9820619,2051.4,2051.3,0.97477]
[1742996977652,0.97477,2051.3,2051.2,4.2698]
[1742996977854,0.97477,2051.3,2051.2,3.295]
[1742996978057,2.25857,2051.3,2051.2,3.295]
[1742996978443,0.97482,2051.2,2051.1,44.6518]
[1742996978758,2.25862,2051.2,2051.1,44.6518]
[1742996978951,2.25862,2051.2,2051.1,0.644]
[1742996979146,0.97496,2050.9,2050.8,3.2078]
[1742996979554,0.97496,2050.9,2050.8,4.18281]
[1742996980248,0.6577,2051.3,2051.0,0.97491]
[1742996980449,0.97482,2051.2,2051.1,3.8489]
[1742996980650,0.97482,2051.2,2051.1,4.82377]
[1742996981155,0.97482,2051.2,2051.1,3.8489]
[1742996982150,0.97482,2051.2,2051.1,4.82377]
[1742996983553,0.97482,2051.2,2050.8,3.2078]
[1742996983756,0.97496,2050.9,2050.8,3.2078]
[1742996986058,0.97501,2050.8,2050.7,0.6885]
[1742996986255,2.39191,2050.8,2050.7,0.6885]
[1742996988161,2.39191,2050.8,2050.7,1.66356]
[1742996988356,0.97501,2050.8,2050.7,1.66356]
[1742996988562,0.97501,2050.8,2050.7,0.6885]
[1742996989259,0.97494,2051.0,2050.9,0.97491]
[1742996989464,0.97494,2051.0,2050.9,4.18271]
[1742996990158,0.97491,2051.0,2050.9,4.18273]
[1742996990459,0.97491,2051.0,2050.9,3.2078]
[1742996990661,0.97506,2050.7,2050.6,44.0078]
[1742996991266,0.97506,2050.7,2050.6,3.2078]
[1742996991952,2.97226,2050.7,2050.6,3.2078]
[1742996996161,2.27836,2050.7,2050.6,3.2078]
[1742996996360,2.27836,2050.7,2050.6,4.1829]
[1742996996672,0.97506,2050.7,2050.6,4.8629]
[1742996996963,0.97506,2050.7,2050.6,45.6629]
[1742996997372,0.97506,2050.7,2050.6,47.7349]
[1742996998370,0.97502,2050.8,2050.7,0.97501]
[1742996998761,0.97496,2050.9,2050.8,0.97496]
[1742996998966,0.97496,2050.9,2050.8,41.77496]
[1742996999168,2.32486,2051.0,2050.9,0.97496]
[1742996999364,2.32486,2051.0,2050.9,4.5449]
[1742996999670,2.32486,2051.0,2050.9,5.51986]
[1742997000065,0.0073119,2051.4,2051.3,0.97477]
[1742997000260,0.9820319,2051.4,2051.3,3.2078]
[1742997000467,0.97487,2051.1,2051.0,3.2078]
[1742997001364,0.9751,2050.6,2050.5,0.0073119]
[1742997001875,0.9751,2050.6,2050.5,1.3444119]
[1742997002067,0.9751,2050.6,2050.5,0.0073119]
[1742997004781,3.0459,2050.6,2050.5,0.0073119]
[1742997006682,1.4008,2050.6,2050.5,2.3116619]
[1742997006981,0.97505,2050.8,2050.7,0.97504]
[1742997007175,0.97506,2050.7,2050.6,0.7033]
[1742997007375,0.9751,2050.6,2050.5,0.0073119]
[1742997007974,0.9751,2050.6,2050.5,1.9e-06]
[1742997008472,2.9343,2050.6,2050.5,1.9e-06]
[1742997008675,18.6113,2050.6,2050.5,1.9e-06]
[1742997010673,0.97534,2050.1,2050.0,10.0]
[1742997011375,3.66174,2050.1,2050.0,10.0]
[1742997011986,3.66174,2050.1,2049.8,0.0073119]
[1742997011987,0.97544,2049.9,2049.8,0.0073119]
[1742997012181,16.46583566,2049.9,2048.8,3.2078]
[1742997012376,2.43916,2049.5,2048.9,1.3469]
[1742997012575,2.43916,2049.5,2049.0,40.8]
[1742997012576,0.97582,2049.1,2049.0,40.8]
[1742997012882,4.87959,2048.9,2048.4,3.2078]
[1742997013071,0.9761,2048.5,2048.4,3.2078]
[1742997013277,3.2078,2048.6,2048.4,0.0049045]
[1742997013472,2.2955,2048.5,2048.4,0.0049045]
[1742997013678,12.1655,2048.5,2048.4,4.5e-06]
[1742997013981,12.1655,2048.5,2047.8,3.2078]
[1742997013982,0.96289459,2047.9,2047.8,3.2078]
[1742997014177,4.5272,2048.5,2047.8,3.2228]
[1742997014483,3.2078,2048.5,2047.9,40.8]
[1742997014683,0.0073119,2048.9,2048.4,3.2078]
[1742997014887,0.0073119,2048.9,2048.8,0.97596]
[1742997015188,0.97596,2048.8,2048.7,3.2078]
[1742997015386,0.97596,2048.8,2048.7,0.02322083]
[1742997015583,4.18376,2048.8,2048.7,0.02322083]
[1742997015883,6.68376,2048.8,2048.7,0.02322083]
[1742997016083,7.33056,2048.8,2048.7,0.02322083]
[1742997016387,2.37216,2048.8,2048.7,0.02322083]
[1742997018084,5.78516,2048.8,2048.7,0.02322083]
[1742997019687,0.97625,2048.2,2048.1,3.8961]
[1742997019874,0.97625,2048.2,2047.8,1.63541]
[1742997019875,6.6258,2048.5,2047.9,1.368]
[1742997020078,0.97634,2048.0,2047.9,1.368]
[1742997021187,0.97634,2048.0,2047.9,4.5758]
[1742997021489,0.97631,2048.1,2048.0,0.97634]
[1742997021675,0.97631,2048.1,2048.0,1.3105]
[1742997021990,3.2078,2048.5,2048.0,1.3105]
[1742997022174,0.97621,2048.3,2048.2,0.97625]
[1742997022378,3.2078,2048.5,2048.4,0.97615]
[1742997022577,3.2078,2048.5,2048.2,4.5183]
[1742997022578,4.1839,2048.5,2048.3,0.97616]
[1742997022779,0.9761,2048.5,2048.4,2.99095]
[1742997023086,6.6588,2048.7,2048.1,41.4825]
[1742997023284,0.97625,2048.2,2048.1,41.4825]
[1742997023483,0.97625,2048.2,2048.1,40.8]
[1742997023791,2.36465,2048.2,2048.1,40.8]
[1742997024181,0.97639,2047.9,2047.8,0.7193]
[1742997024384,0.97639,2047.9,2047.8,0.015]
[1742997024780,0.97639,2047.9,2047.8,40.815]
[1742997025183,2.36479,2047.9,2047.8,40.815]
[1742997025991,0.97639,2047.9,2047.8,40.815]
[1742997026475,0.97639,2047.9,2047.8,41.79144]
[1742997026679,7.28216,2048.1,2047.9,0.97636]
[1742997026680,0.97637,2048.0,2047.9,0.97636]
[1742997026887,0.97634,2048.1,2048.0,0.97633]
[1742997027080,0.97634,2048.0,2047.9,4.84355]
[1742997027283,0.97633,2048.1,2048.0,0.97631]
[1742997027688,0.97634,2048.0,2047.9,4.84357]
[1742997028088,0.97634,2048.0,2047.9,3.8672]
[1742997028284,0.97633,2048.1,2047.9,3.8672]
[1742997028479,0.97629,2048.2,2048.1,0.97628]
[1742997028685,0.97627,2048.2,2048.1,0.97626]
[1742997028984,0.97634,2048.0,2047.9,3.8672]
[1742997029887,0.97639,2047.9,2047.8,0.015]
[1742997030088,2.38289,2047.9,2047.8,0.015]
[1742997030298,5.59069,2047.9,2047.8,0.015]
[1742997030993,0.97663,2047.4,2047.3,3.2078]
[1742997031197,0.97672,2047.2,2047.1,0.6465]
[1742997031886,0.97672,2047.2,2047.1,41.4465]
[1742997032188,0.97672,2047.2,2047.1,40.8]
[1742997032390,2.38322,2047.2,2047.1,40.8]
[1742997032892,0.97687,2046.9,2046.8,0.6673]
[1742997033087,0.97696,2046.7,2046.6,3.2078]
[1742997033282,0.97696,2046.7,2046.6,43.99325499]
[1742997033594,0.97696,2046.7,2046.6,40.8]
[1742997033795,4.18476,2046.7,2046.6,40.8]
[1742997033996,9.87,2046.8,2046.7,0.97696]
[1742997034292,1.3857,2047.0,2046.6,46.45033]
[1742997034591,0.0073119,2047.6,2046.9,5.64998]
[1742997034789,9.87,2048.0,2046.9,5.64998]
[1742997034790,3.2078,2047.8,2047.1,3.2078]
[1742997034991,0.97672,2047.3,2047.2,0.97669]
[1742997035194,0.97672,2047.2,2047.1,4.18453]
[1742997035396,2.44122,2047.7,2047.1,3.2078]
[1742997035597,0.95409783,2047.4,2047.3,0.97666]
[1742997035791,0.95413866,2047.3,2047.2,0.97669]
[1742997036187,0.97672,2047.2,2047.1,0.0073119]
[1742997036492,0.97672,2047.2,2047.1,1.00666324]
[1742997036691,0.97672,2047.2,2047.1,0.02989324]
[1742997036897,0.97672,2047.2,2047.1,1.00666324]
[1742997037100,0.97672,2047.2,2047.1,4.21446324]
[1742997037295,2.4487019,2047.6,2047.1,3.23769324]
[1742997037495,0.97668,2047.3,2047.2,1.3354]
[1742997038094,0.97668,2047.3,2047.2,0.04519288]
[1742997038696,0.97672,2047.2,2047.1,0.0073119]
[1742997038903,11.54752,2047.2,2047.1,1.9e-06]
[1742997039198,0.95437578,2046.7,2046.6,40.8]
[1742997039401,0.97706,2046.5,2046.4,0.02355996]
[1742997039695,0.97706,2046.5,2046.4,0.0461413]
[1742997039996,4.18486,2046.5,2046.4,0.0461413]
[1742997040402,4.18486,2046.5,2046.4,40.8461413]
[1742997040899,7.70186,2046.5,2046.4,40.8461413]
[1742997041295,20.07186,2046.5,2046.4,0.06937706]
[1742997041501,0.9773,2046.0,2045.9,3.2078]
[1742997041903,0.9773,2046.0,2045.9,44.0078]
[1742997042104,0.9773,2046.0,2045.9,44.98514]
[1742997042299,2.34848,2046.1,2046.0,0.9773]
[1742997042495,0.97728,2046.1,2046.0,2.40554282]
[1742997042803,0.97728,2046.1,2046.0,1.42824282]
[1742997043003,2.34848,2046.1,2046.0,0.02324282]
[1742997043299,15.74848,2046.1,2046.0,0.02324282]
[1742997043505,0.93073531,2046.0,2045.9,40.8]
[1742997043698,9.87,2046.1,2045.9,40.8]
[1742997044003,0.9773,2046.0,2045.9,40.8]
[1742997044204,2.3485,2046.0,2045.9,40.8]
[1742997044500,0.97749,2045.6,2045.5,3.2078]
[1742997044696,0.97749,2045.6,2045.5,4.4925]
[1742997044896,0.97749,2045.6,2045.5,3.23104172]
[1742997045406,3.47749,2045.6,2045.5,0.02324172]
[1742997045593,0.97797,2044.6,2044.5,3.2078]
[1742997045797,3.2078,2044.8,2044.0,3.2078]
[1742997045991,0.97792,2044.7,2044.4,0.02324172]
[1742997046199,0.00733066,2044.8,2044.7,0.97792]
[1742997046496,0.97801,2044.5,2044.4,0.02324172]
[1742997046693,0.97801,2044.5,2044.1,40.8]
[1742997046694,0.97813,2044.3,2044.1,42.0847]
[1742997046891,2.44482,2044.7,2044.1,42.0847]
[1742997047099,13.66308,2044.9,2044.6,0.97796]
[1742997047100,11.2185,2044.9,2044.6,0.97796]
[1742997047306,3.676,2045.0,2044.6,4.18576]
[1742997047498,3.68333066,2045.0,2044.6,3.2078]
[1742997047804,0.00733066,2045.0,2044.9,3.2078]
[1742997048005,0.98510066,2045.0,2044.9,4.5701]
[1742997048203,0.00733066,2045.0,2044.5,0.00733066]
[1742997048501,0.97786,2044.9,2044.6,40.8]
[1742997048712,0.00733066,2045.0,2044.9,0.97782]
[1742997048900,0.98512066,2045.0,2044.9,0.97782]
[1742997049206,3.2078,2045.8,2044.9,6.193]
[1742997049499,0.97747,2045.7,2045.6,3.2078]
[1742997049692,0.94840397,2045.7,2045.6,3.2078]
[1742997050106,0.94840397,2045.7,2045.6,4.18529]
[1742997050404,0.94840397,2045.7,2045.6,3.2078]
[1742997051207,0.97749,2045.6,2045.5,1.3623]
[1742997051404,0.97754,2045.5,2045.4,0.00733066]
[1742997051800,0.97754,2045.5,2045.4,0.03880686]
[1742997053108,0.97754,2045.5,2045.4,0.06205119]
[1742997053696,2.44459,2044.9,2044.2,3.2078]
[1742997053996,3.2078,2045.0,2044.6,4.18575]
[1742997054196,3.2078,2045.8,2044.9,3.2078]
[1742997054400,3.2078,2045.8,2045.7,0.97744]
[1742997054602,1.4174,2045.9,2045.8,0.97739]
[1742997054808,0.00733066,2046.0,2045.9,0.97734]
[1742997055001,0.00733066,2046.0,2045.9,2.27554]
[1742997055305,5.65022,2046.7,2046.2,0.97718]
[1742997055500,0.95382703,2046.4,2046.3,1.2982]
[1742997055702,0.95382703,2046.4,2046.3,2.27535]
[1742997055904,0.9773,2046.0,2045.9,47.7498]
[1742997056306,0.9773,2046.0,2045.9,44.542]
[1742997056508,0.9773,2046.0,2045.9,40.82328297]
[1742997056999,0.00733066,2046.2,2046.0,0.9773]
[1742997057203,0.00733066,2046.2,2045.9,40.82328297]
[1742997057204,0.93073406,2046.0,2045.9,40.8]
[1742997057712,2.45034066,2046.2,2045.9,40.8]
[1742997057713,0.00733066,2046.2,2045.9,40.8]
[1742997058016,0.9773,2046.0,2045.9,40.8]
[1742997058204,0.9773,2046.0,2045.9,41.77734]
[1742997058403,0.9773,2046.0,2045.9,40.8]
[1742997058803,0.9773,2046.0,2045.9,40.82328297]
[1742997059004,0.00733066,2046.2,2045.9,0.02328297]
[1742997059202,0.97728,2046.1,2046.0,0.97726]
[1742997059401,0.98457066,2046.2,2046.1,0.97725]
[1742997059606,0.00733066,2046.2,2046.1,4.18505]
[1742997059816,0.00733066,2046.2,2046.1,5.57605]
[1742997060410,0.98453066,2046.2,2046.1,5.57605]
[1742997060610,0.98453066,2046.2,2046.1,2.41481594]
[1742997060810,0.98453066,2046.2,2046.1,1.43756594]
[1742997061011,0.95420109,2045.6,2045.5,3.21513066]
[1742997061218,0.95420109,2045.6,2045.5,4.16358463]
[1742997061419,5.65115,2046.0,2045.5,3.18606463]
[1742997061612,3.81499,2045.9,2045.5,3.18606463]
[1742997061818,0.95420703,2045.6,2045.5,4.16359463]
[1742997062010,0.95420703,2045.6,2045.5,4.1345286]
[1742997062312,2.44349,2045.8,2045.4,40.8]
[1742997062313,0.95426797,2045.5,2045.4,40.8]
[1742997062512,0.97753,2045.6,2045.5,0.97751]
[1742997062707,13.0778,2046.0,2045.4,2.44396]
[1742997063016,13.0778,2046.0,2045.7,0.97741]
[1742997063017,0.97744,2045.8,2045.7,0.97741]
[1742997063312,0.97743,2045.8,2045.7,0.9774]
[1742997063505,0.97749,2045.7,2045.6,0.97746]
[1742997063707,0.97748,2045.7,2045.6,0.97745]
[1742997063912,0.97748,2045.7,2045.6,41.77745]
[1742997064121,0.97744,2045.7,2045.6,41.77743]
[1742997064415,0.97749,2045.6,2045.5,3.2078]
[1742997064616,0.97758,2045.4,2045.3,0.71143066]
[1742997065016,3.2078,2045.7,2045.6,0.97749]
[1742997065214,9.87,2045.8,2045.6,0.02326801]
[1742997065417,0.97744,2045.7,2045.6,0.02326801]
[1742997066814,0.97744,2045.7,2045.6,1.02402602]
[1742997067119,0.97744,2045.7,2045.6,0.04653602]
[1742997067323,0.97754,2045.5,2045.4,0.97756]
[1742997067510,0.97754,2045.5,2045.3,0.68893066]
[1742997067511,0.97758,2045.4,2045.3,0.68893066]
[1742997067716,0.97758,2045.4,2045.3,1.98583066]
[1742997067914,0.97758,2045.4,2045.3,2.00908787]
[1742997069016,0.97758,2045.4,2045.3,0.03058787]
[1742997069817,3.2078,2045.7,2045.3,3.23838787]
[1742997070020,1.4056,2045.8,2045.6,0.97746]
[1742997070227,3.2078,2046.0,2045.8,0.97739]
[1742997070524,0.97739,2045.8,2045.7,0.04651926]
[1742997070718,4.43843066,2046.2,2045.8,0.97736]
[1742997071022,0.90751869,2046.0,2045.9,1.3055]
[1742997071411,3.78933066,2046.2,2045.9,1.3055]
[1742997071412,0.00733066,2046.2,2046.0,0.97727]
[1742997071613,0.00733066,2046.2,2045.9,45.3133]
[1742997071819,0.97725,2046.1,2046.0,0.6503]
[1742997072011,0.9773,2046.0,2045.9,40.8]
[1742997072217,0.00733066,2046.2,2045.9,40.8]
[1742997072423,0.9773,2046.0,2045.9,40.8]
[1742997072723,4.1851,2046.0,2045.9,40.8]
[1742997072909,4.1851,2046.0,2045.9,40.82330442]
[1742997073309,5.5036,2046.0,2045.9,0.02330442]
[1742997073520,0.93081116,2045.8,2045.4,1.3814]
[1742997073719,1.3185,2045.7,2045.5,41.77752]
[1742997074017,1.3185,2045.7,2045.6,2.35889]
[1742997074226,0.6947,2046.1,2045.8,0.97739]
[1742997074227,0.97725,2046.1,2045.8,0.97739]
[1742997074427,1.3185,2046.0,2045.9,0.97734]
[1742997074611,0.00733066,2046.2,2046.1,0.97725]
[1742997074920,9.87,2046.9,2046.2,2.44301]
[1742997075114,1.3243,2046.9,2046.5,4.18484]
[1742997075422,2.30121,2046.9,2046.6,2.3856]
[1742997075615,1.3243,2046.9,2046.7,1.4086]
[1742997075818,2.3012,2046.9,2046.7,1.4086]
[1742997076321,2.3012,2046.9,2046.8,0.04660884]
[1742997076524,2.3012,2046.9,2046.8,0.03208782]
[1742997076718,2.3012,2046.9,2046.6,0.00733066]
[1742997076719,0.92156776,2046.7,2046.6,0.00733066]
[1742997076920,0.92156776,2046.7,2046.5,7.99663565]
[1742997077111,1.3243,2046.6,2046.5,7.99663565]
[1742997077426,1.3243,2046.8,2046.6,1.4086]
[1742997077923,1.3243,2046.8,2046.7,0.97696]
[1742997078109,1.3243,2046.8,2046.6,1.4086]
[1742997078314,1.3243,2046.8,2046.6,2.3856]
[1742997078517,1.3243,2046.8,2046.7,0.97696]
[1742997078718,0.00733066,2047.0,2046.9,0.97687]
[1742997078913,1.40348565,2047.0,2046.9,1.00009592]
[1742997079230,2.38030565,2047.0,2046.9,0.02322592]
[1742997080112,1.40348565,2047.0,2046.9,0.04645184]
[1742997080319,1.40348565,2047.0,2046.9,2.41282184]
[1742997080520,2.38030565,2047.0,2046.9,0.04645184]
[1742997080918,1.40348565,2047.0,2046.9,0.04645184]
[1742997081424,1.40348565,2047.0,2046.9,1.02332184]
[1742997081821,1.40348565,2047.0,2046.9,1.04654776]
[1742997082219,3.2078,2047.1,2047.0,0.97682]
[1742997082424,3.2078,2047.1,2047.0,1.45720368]
[1742997082626,2.30286066,2047.2,2047.0,1.45720368]
[1742997082627,1.32613066,2047.2,2047.1,0.97677]
[1742997083025,0.00733066,2047.2,2047.1,0.97677]
[1742997083425,0.00733066,2047.2,2047.1,1.06967368]
[1742997084125,5.77539,2047.6,2047.5,0.97658]
[1742997084322,0.9766,2047.5,2047.2,6.80729]
[1742997084521,1.3283,2047.4,2047.3,0.13935552]
[1742997084722,2.30493,2047.4,2047.3,0.13935552]
[1742997084922,2.30493,2047.4,2047.3,40.93935552]
[1742997085119,1.3283,2047.4,2047.3,0.16257267]
[1742997085325,2.30493,2047.4,2047.3,0.16257267]
[1742997085516,4.18441,2047.5,2047.3,0.16257267]
[1742997085721,0.97658,2047.5,2047.3,0.16257267]
[1742997085928,2.30493,2047.4,2047.3,0.16257267]
[1742997087021,1.3283,2047.4,2047.3,1.16247015]
[1742997088018,2.30493,2047.4,2047.3,0.18579015]
[1742997088224,0.77222689,2047.3,2047.1,2.38984]
[1742997088530,4.5172,2047.2,2046.5,0.00733066]
[1742997088722,4.18481,2046.6,2046.5,0.00733066]
[1742997088921,0.97718,2046.3,2046.1,2.38312565]
[1742997089124,0.97713,2046.4,2046.2,0.9772]
[1742997089331,0.97725,2046.1,2046.0,0.97728]
[1742997089629,6.96011,2046.3,2045.9,40.8]
[1742997089833,1.3094,2046.0,2045.9,41.77734]
[1742997090030,1.3094,2046.0,2045.9,40.80733066]
[1742997090222,2.2867,2046.0,2045.9,40.80733066]
[1742997090528,2.44348,2045.9,2045.5,0.97752]
[1742997090730,0.97755,2045.5,2045.4,0.97758]
[1742997090933,0.97761,2045.4,2045.3,0.9776]
[1742997091135,0.97759,2045.4,2045.1,2.4443]
[1742997091329,1.3713,2045.6,2045.1,2.4443]
[1742997091531,1.3713,2045.6,2045.2,41.77765]
[1742997091532,0.97763,2045.3,2045.2,41.77765]
[1742997091825,0.97763,2045.3,2045.2,40.8]
[1742997092234,1.3713,2045.3,2045.2,40.8]
[1742997092426,0.97762,2045.4,2045.2,40.8]
[1742997092630,0.97762,2045.4,2045.3,2.34802]
[1742997092937,2.34887,2045.5,2045.4,0.97758]
[1742997093326,0.97758,2045.4,2045.3,2.348]
[1742997093528,1.3713,2045.5,2045.3,1.3704]
[1742997093932,1.3713,2045.5,2045.4,0.97758]
[1742997094136,1.3789,2045.8,2045.7,0.97744]
[1742997094636,1.3789,2045.8,2045.4,6.26309627]
[1742997094637,0.97754,2045.5,2045.4,1.00077627]
[1742997094833,0.97754,2045.5,2045.4,40.82320627]
[1742997095033,0.97754,2045.5,2045.4,40.84641254]